[Event "SRB-ch Semifinal 2021"]
[Site "Paracin"]
[Date "2021.03.21"]
[Round "8.3"]
[White "Sedlak, Nikola"]
[Black "Popovic, Milan S"]
[Result "1-0"]
[ECO "A10"]
[WhiteElo "2514"]
[BlackElo "2327"]
[Annotator "ChessBase"]
[PlyCount "79"]
[EventDate "2021.03.16"]
[EventType "swiss"]
[EventCountry "SRB"]
[SourceTitle "playchess.com"]
[Source "ChessBase"]
[SourceQuality "1"]
[TimeControl "40/5400+30:1800+30"]

1. c4 {[%emt 0:03:48]} g6 {[%emt 0:00:00]} 2. Nc3 {[%emt 0:00:31]} Bg7 {[%emt 0:00:00]} 3. g3 {[%emt 0:02:15]} d6 {[%emt 0:02:21]} 4. Bg2 {[%emt 0:00:09]} e5 {[%emt 0:07:46]} 5. d3 {[%emt 0:03:20]} f5 {[%emt 0:03:27]} 6. e4 {[%emt 0:02:09]} Nc6 {[%emt 0:04:19]} 7. Nge2 {[%emt 0:01:16]} Nf6 {[%emt 0:00:22]} 8. Nd5 {[%emt 0:00:28]} fxe4 {[%emt 0:17:04]} 9. dxe4 {[%emt 0:01:19]} Bg4 {[%emt 0:00:55]} 10. f3 {[%emt 0:01:04]} Be6 {[%emt 0:00:29]} 11. Be3 {[%emt 0:01:54]} Qd7 {[%emt 0:02:14]} 12. Qd2 {[%emt 0:01:01]} Nd8 {[%emt 0:03:51]} 13. O-O {[%emt 0:10:10]} O-O {[%emt 0:03:03]} 14. b3 {[%emt 0:00:42]} Nxd5 {[%emt 0:14:43]} 15. cxd5 {[%emt 0:02:57]} Bh3 {[%emt 0:00:37]} 16. Rac1 {[%emt 0:00:23]} Bxg2 {[%emt 0:00:08]} 17. Kxg2 {[%emt 0:00:09]} c5 {[%emt 0:03:33]} 18. h4 {[%emt 0:02:52]} b5 {[%emt 0:04:52]} 19. h5 {[%emt 0:06:01]} a5 {[%emt 0:00:40]} 20. hxg6 {[%emt 0:00:36]} hxg6 {[%emt 0:00:03]} 21. a3 {[%emt 0:08:06]} Qe8 {[%emt 0:02:58]} 22. Nc3 {[%emt 0:03:43]} b4 {[%emt 0:02:02]} 23. Na4 {[%emt 0:01:53]} Rb8 {[%emt 0:02:18]} 24. Qc2 {[%emt 0:02:14]} Nf7 {[%emt 0:07:45]} 25. axb4 {[%emt 0:02:16]} axb4 {[%emt 0:02:36]} 26. Nb2 {[%emt 0:03:08]} Bf6 {[%emt 0:00:50]} 27. Nc4 {[%emt 0:00:23]} Kg7 {[%emt 0:00:42]} 28. Rh1 {[%emt 0:02:13]} Qd7 {[%emt 0:01:05]} 29. Nxd6 {[%emt 0:04:44]} Qxd6 {[%emt 0:00:45]} 30. Bxc5 {[%emt 0:00:06]} Qa6 {[%emt 0:00:18]} 31. Bxf8+ {[%emt 0:00:19]} Rxf8 {[%emt 0:00:04]} 32. Qc4 {[%emt 0:04:02]} Qb6 {[%emt 0:01:06]} 33. Rc2 {[%emt 0:00:21]} Bd8 {[%emt 0:01:58]} 34. Qc5 {[%emt 0:07:12]} Qxc5 {[%emt 0:10:49]} 35. Rxc5 {[%emt 0:00:21]} Be7 {[%emt 0:00:01]} 36. Rc7 {[%emt 0:02:56]} Bd6 {[%emt 0:00:05]} 37. Rd7 {[%emt 0:00:29]} Rc8 {[%emt 0:01:11]} 38. Ra1 {[%emt 0:00:25]} Rc2+ {[%emt 0:01:28]} 39. Kh3 {[%emt 0:00:09]} Kf6 {[%emt 0:00:30]} 40. Raa7 {[%emt 0:00:00]} 1-0

[Event "SRB-ch Semifinal 2021"]
[Site "Paracin"]
[Date "2021.03.21"]
[Round "8.5"]
[White "Arsovic, Zoran"]
[Black "Sredojevic, Ivan"]
[Result "1-0"]
[ECO "A04"]
[WhiteElo "2374"]
[BlackElo "2288"]
[Annotator "ChessBase"]
[PlyCount "55"]
[EventDate "2021.03.16"]
[EventType "swiss"]
[EventCountry "SRB"]
[SourceTitle "playchess.com"]
[Source "ChessBase"]
[SourceQuality "1"]
[TimeControl "40/5400+30:1800+30"]

1. Nf3 {[%emt 0:00:00]} d6 {[%emt 0:00:00]} 2. d4 {[%emt 0:00:08]} Nf6 {[%emt 0:00:00]} 3. g3 {[%emt 0:00:36]} g6 {[%emt 0:00:35]} 4. Bg2 {[%emt 0:00:34]} Bg7 {[%emt 0:00:05]} 5. O-O {[%emt 0:00:15]} O-O {[%emt 0:00:03]} 6. Re1 {[%emt 0:00:24]} Nbd7 {[%emt 0:09:01]} 7. e4 {[%emt 0:01:40]} e5 {[%emt 0:03:49]} 8. Nc3 {[%emt 0:00:52]} Re8 {[%emt 0:00:51]} 9. a4 {[%emt 0:01:31]} a5 {[%emt 0:03:11]} 10. h3 {[%emt 0:01:09]} c6 {[%emt 0:00:30]} 11. Be3 {[%emt 0:00:30]} Qc7 {[%emt 0:07:11]} 12. Qd2 {[%emt 0:07:48]} b6 {[%emt 0:12:26]} 13. Rad1 {[%emt 0:13:09]} Bb7 {[%emt 0:01:18]} 14. Nh2 {[%emt 0:12:44]} Rad8 {[%emt 0:05:22]} 15. f4 {[%emt 0:07:26]} Nh5 {[%emt 0:03:23]} 16. Qf2 {[%emt 0:06:47]} exd4 {[%emt 0:08:50]} 17. Bxd4 {[%emt 0:00:48]} Bxd4 {[%emt 0:00:05]} 18. Qxd4 {[%emt 0:06:39]} Ndf6 {[%emt 0:08:09]} 19. g4 {[%emt 0:09:42]} c5 {[%emt 0:01:00]} 20. Qf2 {[%emt 0:01:47]} Ng7 {[%emt 0:00:13]} 21. Qh4 {[%emt 0:00:54]} Qe7 {[%emt 0:05:38]} 22. e5 {[%emt 0:02:32]} dxe5 {[%emt 0:00:54]} 23. Bxb7 {[%emt 0:00:16]} Rxd1 {[%emt 0:00:13]} 24. Nxd1 e4 25. Bc6 {[%emt 0:05:00]} Rd8 {[%emt 0:06:43]} 26. Nc3 {[%emt 0:01:31]} Qd6 {[%emt 0:01:13]} 27. Rd1 Qe7 {[%emt 0:00:08]} 28. Nd5 {[%emt 0:03:03]} 1-0

[Event "SRB-ch Semifinal 2021"]
[Site "Paracin"]
[Date "2021.03.21"]
[Round "8.6"]
[White "Drazic, Sinisa"]
[Black "Ivanovic, Marko"]
[Result "1-0"]
[ECO "C45"]
[WhiteElo "2334"]
[BlackElo "2274"]
[Annotator "ChessBase"]
[PlyCount "57"]
[EventDate "2021.03.16"]
[EventType "swiss"]
[EventCountry "SRB"]
[SourceTitle "playchess.com"]
[Source "ChessBase"]
[SourceQuality "1"]
[TimeControl "40/5400+30:1800+30"]

1. e4 {[%emt 0:00:00]} e5 {[%emt 0:04:52]} 2. Nf3 {[%emt 0:00:00]} Nc6 {[%emt 0:00:06]} 3. d4 {[%emt 0:00:00]} exd4 {[%emt 0:00:04]} 4. Nxd4 {[%emt 0:00:00]} Bc5 {[%emt 0:00:03]} 5. Be3 {[%emt 0:00:00]} Qf6 {[%emt 0:00:06]} 6. c3 {[%emt 0:00:00]} Nge7 {[%emt 0:02:46]} 7. Nc2 {[%emt 0:01:57]} Bb6 {[%emt 0:03:18]} 8. Nba3 {[%emt 0:03:23]} Qg6 {[%emt 0:01:41]} 9. Nb5 {[%emt 0:01:32]} O-O {[%emt 0:10:41]} 10. Bxb6 {[%emt 0:00:44]} axb6 {[%emt 0:00:18]} 11. Nxc7 {[%emt 0:01:18]} Ra5 {[%emt 0:01:41]} 12. f3 {[%emt 0:12:06]} Re5 {[%emt 0:13:04]} 13. Qd2 {[%emt 0:09:51]} d5 {[%emt 0:00:13]} 14. O-O-O {[%emt 0:12:19]} dxe4 {[%emt 0:01:30]} 15. b4 {[%emt 0:06:07]} e3 {[%emt 0:31:41]} 16. Nxe3 {[%emt 0:00:30]} Nxb4 {[%emt 0:02:29]} 17. cxb4 {[%emt 0:01:59]} Qc6+ {[%emt 0:00:06]} 18. Nc4 {[%emt 0:03:45]} b5 {[%emt 0:07:42]} 19. Qd6 {[%emt 0:02:07]} bxc4 {[%emt 0:04:30]} 20. Qxe5 {[%emt 0:00:44]} Ng6 {[%emt 0:00:07]} 21. Qc5 {[%emt 0:05:08]} Qa4 {[%emt 0:00:33]} 22. Qa5 {[%emt 0:00:57]} Qc6 {[%emt 0:00:12]} 23. Qc5 {[%emt 0:00:58]} Qa4 {[%emt 0:00:04]} 24. Bxc4 {[%emt 0:02:04]} Qa3+ {[%emt 0:00:22]} 25. Kb1 {[%emt 0:01:05]} b6 {[%emt 0:00:08]} 26. Nb5 {[%emt 0:01:10]} Qa4 {[%emt 0:00:58]} 27. Bb3 {[%emt 0:00:53]} Qa6 {[%emt 0:00:30]} 28. Qh5 {[%emt 0:01:18]} Ne7 {[%emt 0:01:59]} 29. Qxf7+ {[%emt 0:00:22]} 1-0

[Event "SRB-ch Semifinal 2021"]
[Site "Paracin"]
[Date "2021.03.21"]
[Round "8.7"]
[White "Perunovic, Miodrag"]
[Black "Ratkovic, Milovan"]
[Result "1-0"]
[ECO "B23"]
[WhiteElo "2428"]
[BlackElo "2462"]
[Annotator "ChessBase"]
[PlyCount "59"]
[EventDate "2021.03.16"]
[EventType "swiss"]
[EventCountry "SRB"]
[SourceTitle "playchess.com"]
[Source "ChessBase"]
[SourceQuality "1"]
[TimeControl "40/5400+30:1800+30"]

1. e4 {[%emt 0:00:00]} c5 {[%emt 0:00:00]} 2. Nc3 {[%emt 0:00:00]} a6 {[%emt 0:00:13]} 3. Nge2 {[%emt 0:00:02]} b5 {[%emt 0:01:32]} 4. g3 {[%emt 0:00:03]} Bb7 {[%emt 0:00:32]} 5. Bg2 {[%emt 0:00:03]} e6 {[%emt 0:01:26]} 6. d4 {[%emt 0:00:07]} cxd4 {[%emt 0:01:56]} 7. Nxd4 {[%emt 0:00:02]} Nf6 {[%emt 0:02:10]} 8. O-O {[%emt 0:00:03]} d6 {[%emt 0:20:57]} 9. Re1 {[%emt 0:00:02]} e5 {[%emt 0:06:50]} 10. Nf5 {[%emt 0:01:16]} g6 {[%emt 0:02:58]} 11. Ne3 {[%emt 0:02:13]} Bg7 {[%emt 0:05:21]} 12. a4 {[%emt 0:00:05]} O-O {[%emt 0:03:35]} 13. axb5 {[%emt 0:00:28]} axb5 {[%emt 0:00:23]} 14. Rxa8 {[%emt 0:00:02]} Bxa8 {[%emt 0:00:08]} 15. Nxb5 {[%emt 0:00:04]} Nxe4 {[%emt 0:02:23]} 16. Nxd6 {[%emt 0:01:45]} Nxd6 {[%emt 0:05:31]} 17. Bxa8 {[%emt 0:00:01]} Na6 {[%emt 0:01:07]} 18. Bg2 {[%emt 0:01:13]} e4 {[%emt 0:03:31]} 19. Nd5 {[%emt 0:03:40]} Re8 {[%emt 0:04:34]} 20. b3 {[%emt 0:02:29]} Nc5 {[%emt 0:08:51]} 21. Ba3 {[%emt 0:00:32]} Ncb7 {[%emt 0:06:56]} 22. c4 {[%emt 0:00:46]} Kh8 {[%emt 0:00:34]} 23. Qd2 {[%emt 0:00:58]} f5 {[%emt 0:02:38]} 24. Bb2 {[%emt 0:00:58]} Qd7 {[%emt 0:00:15]} 25. Nf6 {[%emt 0:00:34]} Bxf6 {[%emt 0:00:14]} 26. Bxf6+ {[%emt 0:00:02]} Kg8 {[%emt 0:00:01]} 27. Bb2 {[%emt 0:01:20]} Qf7 {[%emt 0:03:11]} 28. Qd4 {[%emt 0:00:27]} Kf8 {[%emt 0:00:12]} 29. Ba3 {[%emt 0:01:09]} Re6 {[%emt 0:00:12]} 30. Rd1 {[%emt 0:00:40]} 1-0

[Event "SRB-ch Semifinal 2021"]
[Site "Paracin"]
[Date "2021.03.21"]
[Round "8.8"]
[White "Irizanin, Radoje"]
[Black "Tadic, Stefan"]
[Result "0-1"]
[ECO "A45"]
[WhiteElo "2343"]
[BlackElo "2419"]
[Annotator "ChessBase"]
[PlyCount "74"]
[EventDate "2021.03.16"]
[EventType "swiss"]
[EventCountry "SRB"]
[SourceTitle "playchess.com"]
[Source "ChessBase"]
[SourceQuality "1"]
[TimeControl "40/5400+30:1800+30"]

1. d4 {[%emt 0:00:00]} Nf6 {[%emt 0:00:00]} 2. Bg5 {[%emt 0:00:06]} e6 {[%emt 0:00:00]} 3. e3 {[%emt 0:00:44]} h6 {[%emt 0:00:05]} 4. Bh4 {[%emt 0:00:32]} c5 {[%emt 0:00:05]} 5. Nd2 {[%emt 0:01:15]} Nc6 {[%emt 0:00:40]} 6. c3 {[%emt 0:00:58]} d5 {[%emt 0:00:21]} 7. f4 {[%emt 0:08:01]} Qb6 {[%emt 0:02:44]} 8. Rb1 {[%emt 0:02:00]} cxd4 {[%emt 0:01:23]} 9. exd4 {[%emt 0:01:08]} Bd6 {[%emt 0:01:21]} 10. Qf3 {[%emt 0:04:22]} Qc7 {[%emt 0:03:23]} 11. Nh3 {[%emt 0:02:21]} Ne7 {[%emt 0:09:42]} 12. Bd3 {[%emt 0:02:44]} Bd7 {[%emt 0:02:47]} 13. O-O {[%emt 0:03:19]} O-O-O {[%emt 0:18:04]} 14. b4 {[%emt 0:10:38]} Kb8 {[%emt 0:04:40]} 15. b5 {[%emt 0:04:32]} Rdg8 {[%emt 0:26:13]} 16. Bxf6 {[%emt 0:14:08]} gxf6 {[%emt 0:00:01]} 17. c4 {[%emt 0:05:31]} dxc4 {[%emt 0:04:34]} 18. Nxc4 {[%emt 0:00:23]} Nf5 {[%emt 0:02:25]} 19. Nxd6 {[%emt 0:02:23]} Nxd6 {[%emt 0:02:30]} 20. Nf2 {[%emt 0:03:53]} h5 {[%emt 0:02:54]} 21. Kh1 {[%emt 0:01:57]} f5 {[%emt 0:00:28]} 22. a4 {[%emt 0:02:18]} h4 {[%emt 0:01:45]} 23. Rfc1 {[%emt 0:04:42]} Qb6 {[%emt 0:01:35]} 24. Qe3 {[%emt 0:02:50]} Rc8 {[%emt 0:00:13]} 25. a5 {[%emt 0:02:44]} Qxa5 {[%emt 0:02:17]} 26. Qe5 {[%emt 0:00:35]} Qb6 {[%emt 0:05:10]} 27. Rc5 {[%emt 0:04:45]} Rhf8 {[%emt 0:01:12]} 28. Rbc1 {[%emt 0:01:54]} f6 {[%emt 0:00:07]} 29. Qe2 {[%emt 0:01:08]} Nxb5 {[%emt 0:03:31]} 30. Qb2 {[%emt 0:05:15]} Nd6 {[%emt 0:00:44]} 31. Qa3 {[%emt 0:01:07]} a6 {[%emt 0:01:23]} 32. Ra1 {[%emt 0:01:35]} Nb5 {[%emt 0:00:14]} 33. Qb4 {[%emt 0:00:51]} Rg8 {[%emt 0:00:43]} 34. Bf1 {[%emt 0:01:58]} Bc6 {[%emt 0:00:40]} 35. Qb1 {[%emt 0:02:22]} Rcd8 {[%emt 0:00:35]} 36. Qb2 {[%emt 0:00:42]} Rxd4 {[%emt 0:01:12]} 37. Bxb5 {[%emt 0:00:25]} Bxg2+ {[%emt 0:00:27]} 0-1

[Event "SRB-ch Semifinal 2021"]
[Site "Paracin"]
[Date "2021.03.21"]
[Round "8.9"]
[White "Mijatovic, Dusan"]
[Black "Zegarac, Vuk"]
[Result "0-1"]
[ECO "B12"]
[WhiteElo "2246"]
[BlackElo "2386"]
[Annotator "ChessBase"]
[PlyCount "96"]
[EventDate "2021.03.16"]
[EventType "swiss"]
[EventCountry "SRB"]
[SourceTitle "playchess.com"]
[Source "ChessBase"]
[SourceQuality "1"]
[TimeControl "40/5400+30:1800+30"]

1. e4 {[%emt 0:05:19]} c6 {[%emt 0:00:00]} 2. d4 {[%emt 0:00:08]} d5 {[%emt 0:00:22]} 3. e5 {[%emt 0:00:08]} c5 {[%emt 0:00:36]} 4. dxc5 {[%emt 0:00:10]} e6 {[%emt 0:00:27]} 5. Nf3 {[%emt 0:00:10]} Bxc5 {[%emt 0:00:21]} 6. Bd3 {[%emt 0:00:11]} Ne7 {[%emt 0:00:27]} 7. O-O {[%emt 0:01:19]} Ng6 {[%emt 0:00:08]} 8. Re1 {[%emt 0:00:57]} O-O {[%emt 0:00:41]} 9. Nbd2 {[%emt 0:00:58]} Nc6 {[%emt 0:00:49]} 10. Nb3 {[%emt 0:02:16]} Bb6 {[%emt 0:00:13]} 11. Bxg6 {[%emt 0:05:08]} fxg6 {[%emt 0:01:06]} 12. Be3 {[%emt 0:00:19]} h6 {[%emt 0:02:01]} 13. Qd3 {[%emt 0:06:42]} g5 {[%emt 0:00:35]} 14. c4 {[%emt 0:11:47]} g4 {[%emt 0:12:35]} 15. Bxb6 {[%emt 0:02:55]} Qxb6 {[%emt 0:01:14]} 16. Nfd4 {[%emt 0:13:08]} Rf4 {[%emt 0:17:26]} 17. Nxc6 {[%emt 0:16:30]} bxc6 {[%emt 0:00:48]} 18. cxd5 {[%emt 0:00:37]} cxd5 {[%emt 0:00:41]} 19. Qe3 {[%emt 0:02:46]} Rb4 {[%emt 0:01:42]} 20. Rad1 {[%emt 0:08:42]} Bd7 {[%emt 0:05:27]} 21. Rd4 {[%emt 0:02:20]} a5 {[%emt 0:02:26]} 22. Rc1 {[%emt 0:02:18]} Rf8 {[%emt 0:10:33]} 23. Rxb4 {[%emt 0:02:22]} Qxb4 {[%emt 0:00:04]} 24. Qc5 {[%emt 0:02:13]} Qf4 {[%emt 0:01:23]} 25. Qd4 {[%emt 0:00:53]} Qg5 {[%emt 0:03:38]} 26. Qe3 {[%emt 0:02:38]} Qxe3 {[%emt 0:02:44]} 27. fxe3 {[%emt 0:00:03]} Rf5 {[%emt 0:00:04]} 28. Nd4 {[%emt 0:04:56]} Rxe5 {[%emt 0:00:46]} 29. Rc7 {[%emt 0:00:02]} Be8 {[%emt 0:00:28]} 30. Kf2 {[%emt 0:00:36]} Re4 {[%emt 0:01:29]} 31. Re7 {[%emt 0:02:03]} Bf7 {[%emt 0:00:51]} 32. Ra7 {[%emt 0:00:14]} e5 {[%emt 0:00:32]} 33. Nc6 {[%emt 0:00:34]} d4 {[%emt 0:02:38]} 34. exd4 {[%emt 0:01:37]} exd4 {[%emt 0:00:08]} 35. Ra8+ {[%emt 0:00:15]} Kh7 {[%emt 0:01:42]} 36. Rd8 {[%emt 0:00:49]} Bxa2 {[%emt 0:00:40]} 37. Nxa5 {[%emt 0:01:48]} Bb1 {[%emt 0:00:38]} 38. Nb3 {[%emt 0:00:38]} d3 {[%emt 0:00:46]} 39. Nc1 {[%emt 0:00:14]} Rf4+ {[%emt 0:00:15]} 40. Ke3 {[%emt 0:00:00]} Re4+ {[%emt 0:00:00]} 41. Kf2 {[%emt 0:17:32]} Rc4 {[%emt 0:01:25]} 42. Nb3 {[%emt 0:03:59]} Rc2+ {[%emt 0:00:17]} 43. Kg3 {[%emt 0:00:01]} Rxb2 {[%emt 0:00:20]} 44. Nc5 {[%emt 0:00:02]} d2 {[%emt 0:02:19]} 45. Rd7 {[%emt 0:04:45]} Bf5 {[%emt 0:02:16]} 46. Rd4 {[%emt 0:00:54]} Rb5 {[%emt 0:00:26]} 47. Na4 {[%emt 0:02:39]} Rb3+ {[%emt 0:01:12]} 48. Kf2 {[%emt 0:00:13]} Bd3 {[%emt 0:00:04]} 0-1

[Event "SRB-ch Semifinal 2021"]
[Site "Paracin"]
[Date "2021.03.21"]
[Round "8.10"]
[White "Kotrla, Sebastian"]
[Black "Abramovic, Bosko"]
[Result "0-1"]
[ECO "D02"]
[WhiteElo "2108"]
[BlackElo "2330"]
[Annotator "ChessBase"]
[PlyCount "80"]
[EventDate "2021.03.16"]
[EventType "swiss"]
[EventCountry "SRB"]
[SourceTitle "playchess.com"]
[Source "ChessBase"]
[SourceQuality "1"]
[TimeControl "40/5400+30:1800+30"]

1. d4 {[%emt 0:00:00]} d5 {[%emt 0:00:00]} 2. Nf3 {[%emt 0:00:00]} Nf6 {[%emt 0:00:00]} 3. Bf4 {[%emt 0:00:19]} c5 {[%emt 0:01:41]} 4. c3 {[%emt 0:01:06]} Qb6 {[%emt 0:00:19]} 5. Qb3 {[%emt 0:00:43]} Nc6 {[%emt 0:00:18]} 6. e3 {[%emt 0:01:52]} c4 {[%emt 0:02:09]} 7. Qc2 {[%emt 0:01:38]} Bf5 {[%emt 0:04:04]} 8. Qc1 {[%emt 0:00:11]} Nh5 {[%emt 0:01:48]} 9. Bg3 {[%emt 0:04:44]} Nxg3 {[%emt 0:00:12]} 10. hxg3 {[%emt 0:00:13]} e6 {[%emt 0:00:09]} 11. Nbd2 {[%emt 0:01:03]} Qd8 {[%emt 0:00:23]} 12. Nh4 {[%emt 0:03:45]} Be7 {[%emt 0:00:10]} 13. Nxf5 {[%emt 0:01:27]} exf5 {[%emt 0:00:07]} 14. Be2 {[%emt 0:00:44]} O-O {[%emt 0:02:34]} 15. Qc2 {[%emt 0:00:19]} g6 {[%emt 0:00:07]} 16. a4 {[%emt 0:21:31]} a6 {[%emt 0:05:11]} 17. Bf3 {[%emt 0:00:56]} Qd7 {[%emt 0:01:16]} 18. Qc1 {[%emt 0:07:26]} Rfe8 {[%emt 0:02:04]} 19. b3 {[%emt 0:05:21]} b5 {[%emt 0:04:36]} 20. bxc4 {[%emt 0:11:47]} bxc4 {[%emt 0:00:10]} 21. Kf1 {[%emt 0:00:29]} Rab8 {[%emt 0:02:10]} 22. Bd1 {[%emt 0:11:35]} Na5 {[%emt 0:01:47]} 23. Rb1 {[%emt 0:01:03]} Qd6 {[%emt 0:00:56]} 24. Bc2 {[%emt 0:04:10]} Qa3 {[%emt 0:04:32]} 25. Qxa3 {[%emt 0:01:10]} Bxa3 {[%emt 0:00:06]} 26. Ke2 {[%emt 0:00:21]} Bb2 {[%emt 0:00:28]} 27. Rh6 {[%emt 0:01:13]} Bxc3 {[%emt 0:03:27]} 28. Rbh1 {[%emt 0:00:50]} Rb2 {[%emt 0:01:22]} 29. Kd1 {[%emt 0:00:41]} Bxd2 {[%emt 0:02:56]} 30. Rxh7 {[%emt 0:03:01]} Re6 {[%emt 0:00:13]} 31. Rh8+ {[%emt 0:01:44]} Kg7 {[%emt 0:00:06]} 32. R1h7+ {[%emt 0:01:01]} Kf6 {[%emt 0:00:05]} 33. Kxd2 {[%emt 0:00:37]} Nb3+ {[%emt 0:00:32]} 34. Kc3 {[%emt 0:01:28]} Ra2 {[%emt 0:00:34]} 35. Rf8 {[%emt 0:03:13]} Re7 {[%emt 0:00:26]} 36. Rb8 {[%emt 0:04:01]} Na1 {[%emt 0:04:47]} 37. Rb2 {[%emt 0:01:24]} Ra3+ {[%emt 0:01:01]} 38. Kb4 {[%emt 0:00:44]} Nxc2+ {[%emt 0:00:11]} 39. Rxc2 {[%emt 0:00:14]} Rb3+ {[%emt 0:00:12]} 40. Kc5 {[%emt 0:00:00]} Ke6 {[%emt 0:00:00]} 0-1

[Event "SRB-ch Semifinal 2021"]
[Site "Paracin"]
[Date "2021.03.22"]
[Round "9.4"]
[White "Radovanovic, Nikola"]
[Black "Drazic, Sinisa"]
[Result "0-1"]
[ECO "D11"]
[WhiteElo "2391"]
[BlackElo "2334"]
[Annotator "RC"]
[PlyCount "84"]
[EventDate "2021.03.16"]
[EventType "swiss"]
[EventCountry "SRB"]
[SourceTitle "playchess.com"]
[Source "ChessBase"]
[SourceQuality "1"]
[TimeControl "40/5400+30:1800+30"]

1. d4 {[%emt 0:02:20]} d5 {[%emt 0:00:00]} 2. c4 {[%emt 0:00:14]} c6 {[%emt 0:00:00]} 3. Nf3 {[%emt 0:03:02]} Nf6 {[%emt 0:00:45]} 4. e3 {[%emt 0:01:52]} Bg4 {[%emt 0:00:08]} 5. Nc3 {[%emt 0:03:50]} e6 {[%emt 0:00:50]} 6. h3 {[%emt 0:01:17]} Bxf3 {[%emt 0:00:03]} 7. Qxf3 {[%emt 0:00:10]} Bb4 {[%emt 0:00:20]} 8. Bd3 {[%emt 0:03:20]} Nbd7 {[%emt 0:00:15]} 9. O-O {[%emt 0:01:33]} O-O {[%emt 0:00:07]} 10. a3 {[%emt 0:21:45]} Ba5 {[%emt 0:07:46]} 11. b4 {[%emt 0:06:06]} Bc7 {[%emt 0:00:40]} 12. Bb2 {[%emt 0:01:40]} Re8 {[%emt 0:02:20]} 13. Rad1 {[%emt 0:11:03]} e5 {[%emt 0:13:03]} 14. cxd5 {[%emt 0:09:03]} cxd5 {[%emt 0:00:40]} 15. dxe5 {[%emt 0:01:34]} Nxe5 {[%emt 0:00:03]} 16. Qe2 {[%emt 0:00:26]} Qd6 {[%emt 0:08:22]} 17. f4 {[%emt 0:01:22]} Nxd3 {[%emt 0:00:23]} 18. Rxd3 {[%emt 0:00:43]} Qa6 {[%emt 0:11:12]} 19. Qd2 {[%emt 0:07:17]} Bb6 {[%emt 0:00:17]} 20. b5 {[%emt 0:04:20]} Qa5 {[%emt 0:00:11]} 21. Kh2 {[%emt 0:02:12]} Rad8 {[%emt 0:02:40]} 22. Rd1 {[%emt 0:00:56]} h6 {[%emt 0:07:39]} 23. Nxd5 {[%emt 0:05:52]} Nxd5 {[%emt 0:00:13]} 24. Qxa5 {[%emt 0:00:41]} Bxa5 {[%emt 0:00:02]} 25. Rxd5 {[%emt 0:00:11]} Rxd5 {[%emt 0:00:08]} 26. Rxd5 {[%emt 0:00:05]} Rxe3 {[%emt 0:00:06]} 27. a4 {[%emt 0:01:37]} Be1 {[%emt 0:00:23]} 28. Rd8+ {[%emt 0:05:14]} Kh7 {[%emt 0:00:05]} 29. Rd1 {[%emt 0:00:13]} Bg3+ {[%emt 0:02:00]} 30. Kh1 {[%emt 0:00:48]} a6 {[%emt 0:04:37]} 31. bxa6 {[%emt 0:01:27]} bxa6 {[%emt 0:00:01]} 32. f5 {[%emt 0:02:18]} a5 {[%emt 0:02:33]} 33. Bd4 {[%emt 0:00:49]} Re4 {[%emt 0:00:03]} 34. Kg1 {[%emt 0:01:03]} f6 {[%emt 0:00:47]} 35. Bf2 {[%emt 0:00:32]} Be5 {[%emt 0:00:06]} 36. g4 {[%emt 0:00:34]} Rxa4 {[%emt 0:11:56]} 37. Rd7 {[%emt 0:00:09]} Rc4 {[%emt 0:01:13]} 38. Ra7 {[%emt 0:00:48]} Rc1+ {[%emt 0:00:15]} 39. Kg2 {[%emt 0:00:11]} Rc2 {[%emt 0:00:08]} 40. Rd7 {[%emt 0:00:00]} a4 {[%emt 0:00:00]} 41. Rd3 {[%emt 0:03:36]} Bb2 {[%emt 0:00:48]} 42. Kf3 {[%emt 0:00:05]} Rxf2+ {[%emt 0:00:17]} 0-1